[Event "Late-Titled-Tuesday-Blitz-April-16-2024"]
[Site "Chess.com"]
[Date "2024.04.16"]
[Round "4"]
[White "FREZZY23"]
[Black "nassimzrikem"]
[Result "1-0"]
[WhiteElo "2403"]
[BlackElo "2258"]
[TimeControl "180+1"]
[EndTime "14:36:49 PDT"]
[Termination "FREZZY23 won by resignation"]

1. Nf3 {[%clk 0:02:53.6]} 1... Nf6 {[%clk 0:02:57.8]} 2. g3 {[%clk 0:02:49.7]}
2... d5 {[%clk 0:02:57.6]} 3. Bg2 {[%clk 0:02:46.9]} 3... c5 {[%clk 0:02:57.7]}
4. O-O {[%clk 0:02:44.8]} 4... Nc6 {[%clk 0:02:57.9]} 5. d4 {[%clk 0:02:45.4]}
5... cxd4 {[%clk 0:02:56.6]} 6. Nxd4 {[%clk 0:02:46.1]} 6... e5 {[%clk 0:02:57]}
7. Nxc6 {[%clk 0:02:46.1]} 7... bxc6 {[%clk 0:02:57.9]} 8. c4 {[%clk 0:02:46.7]}
8... Be7 {[%clk 0:02:56.4]} 9. Nc3 {[%clk 0:02:46.4]} 9... Be6 {[%clk
0:02:51.5]} 10. cxd5 {[%clk 0:02:45.6]} 10... cxd5 {[%clk 0:02:51.5]} 11. Qa4+
{[%clk 0:02:44.4]} 11... Qd7 {[%clk 0:02:50.6]} 12. Qxd7+ {[%clk 0:02:43]} 12...
Kxd7 {[%clk 0:02:51.5]} 13. Rd1 {[%clk 0:02:43.5]} 13... Kc6 {[%clk 0:02:45.3]}
14. Bg5 {[%clk 0:02:38.4]} 14... Bb4 {[%clk 0:01:43.6]} 15. Rac1 {[%clk
0:02:22.1]} 15... Bxc3 {[%clk 0:01:43.2]} 16. Rxc3+ {[%clk 0:02:17.9]} 16... Kd6
{[%clk 0:01:43.3]} 17. Rcd3 {[%clk 0:02:06.3]} 17... e4 {[%clk 0:01:40.2]} 18.
Ra3 {[%clk 0:02:02.5]} 18... Ke7 {[%clk 0:01:34]} 19. Rc1 {[%clk 0:02:00.8]}
19... Kd7 {[%clk 0:01:27.7]} 20. Rac3 {[%clk 0:01:59]} 20... Rhc8 {[%clk
0:01:27.9]} 21. Bf4 {[%clk 0:01:55]} 21... Rxc3 {[%clk 0:01:25.8]} 22. Rxc3
{[%clk 0:01:53.7]} 22... Rc8 {[%clk 0:01:26.2]} 23. Rxc8 {[%clk 0:01:52.7]}
23... Kxc8 {[%clk 0:01:26.4]} 24. Be5 {[%clk 0:01:52.8]} 24... Ne8 {[%clk
0:01:25.8]} 25. e3 {[%clk 0:01:51.9]} 25... f6 {[%clk 0:01:25.8]} 26. Bd4 {[%clk
0:01:51.8]} 26... Kb7 {[%clk 0:01:25.8]} 27. Bf1 {[%clk 0:01:48.3]} 27... Nd6
{[%clk 0:01:25]} 28. b3 {[%clk 0:01:46.5]} 28... Nf5 {[%clk 0:01:16.2]} 29. Bc5
{[%clk 0:01:45.8]} 29... Kc6 {[%clk 0:01:14.6]} 30. Bxa7 {[%clk 0:01:44.8]}
30... Nd6 {[%clk 0:01:11.3]} 31. a4 {[%clk 0:01:42.3]} 31... Kb7 {[%clk
0:01:10]} 32. Bc5 {[%clk 0:01:41.9]} 32... Nf7 {[%clk 0:01:01.1]} 33. b4 {[%clk
0:01:35.9]} 33... Ne5 {[%clk 0:00:59.8]} 34. Be2 {[%clk 0:01:35.1]} 34... Nf3+
{[%clk 0:00:53.9]} 35. Kg2 {[%clk 0:01:32.3]} 35... Ne1+ {[%clk 0:00:47.8]} 36.
Kf1 {[%clk 0:01:30.9]} 36... Nf3 {[%clk 0:00:47.8]} 37. Bxf3 {[%clk 0:01:23.3]}
37... exf3 {[%clk 0:00:47.8]} 38. Ke1 {[%clk 0:01:23.9]} 38... Bf5 {[%clk
0:00:48.1]} 39. Kd2 {[%clk 0:01:24.2]} 39... Bd7 {[%clk 0:00:44.1]} 40. b5
{[%clk 0:01:21.4]} 40... Bf5 {[%clk 0:00:42.3]} 41. Kc3 {[%clk 0:01:19.5]} 41...
Be4 {[%clk 0:00:35.1]} 42. a5 {[%clk 0:01:16.8]} 42... h5 {[%clk 0:00:32.4]} 43.
a6+ {[%clk 0:01:15.2]} 43... Kb8 {[%clk 0:00:29.6]} 44. b6 {[%clk 0:01:15.1]}
44... Bf5 {[%clk 0:00:23.2]} 45. Bd6+ {[%clk 0:01:13]} 1-0

[Event "Late-Titled-Tuesday-Blitz-April-16-2024"]
[Site "Chess.com"]
[Date "2024.04.16"]
[Round "4"]
[White "Manukyan_Artak"]
[Black "Lennis93"]
[Result "0-1"]
[WhiteElo "2503"]
[BlackElo "2751"]
[TimeControl "180+1"]
[EndTime "14:36:58 PDT"]
[Termination "Lennis93 won by resignation"]

1. e4 {[%clk 0:02:43.8]} 1... g6 {[%clk 0:02:56.2]} 2. d4 {[%clk 0:02:43.1]}
2... Bg7 {[%clk 0:02:56.8]} 3. c4 {[%clk 0:02:41.4]} 3... a6 {[%clk 0:02:57.4]}
4. Nc3 {[%clk 0:02:41.5]} 4... d6 {[%clk 0:02:57.8]} 5. f4 {[%clk 0:02:40.4]}
5... c6 {[%clk 0:02:58]} 6. Nf3 {[%clk 0:02:40.6]} 6... Nf6 {[%clk 0:02:58]} 7.
e5 {[%clk 0:02:40.3]} 7... Nfd7 {[%clk 0:02:57.4]} 8. e6 {[%clk 0:02:38.8]} 8...
fxe6 {[%clk 0:02:57.2]} 9. Ng5 {[%clk 0:02:39]} 9... Nf8 {[%clk 0:02:56.2]} 10.
Bd3 {[%clk 0:02:36.9]} 10... Bxd4 {[%clk 0:02:55.3]} 11. Bxg6+ {[%clk
0:02:21.1]} 11... Nxg6 {[%clk 0:02:51.7]} 12. Qxd4 {[%clk 0:02:22]} 12... O-O
{[%clk 0:02:51.5]} 13. O-O {[%clk 0:02:09.2]} 13... c5 {[%clk 0:02:42.9]} 14.
Qe4 {[%clk 0:02:01.4]} 14... Rf6 {[%clk 0:02:40.8]} 15. Be3 {[%clk 0:01:41.5]}
15... Nc6 {[%clk 0:02:40.3]} 16. h4 {[%clk 0:01:35.7]} 16... Bd7 {[%clk
0:02:36.5]} 17. h5 {[%clk 0:01:31.8]} 17... Nf8 {[%clk 0:02:36.7]} 18. g4 {[%clk
0:01:28.2]} 18... Qb6 {[%clk 0:02:29.1]} 19. b3 {[%clk 0:01:23.1]} 19... Nd4
{[%clk 0:02:28.4]} 20. Qd3 {[%clk 0:01:14]} 20... Bc6 {[%clk 0:02:21.5]} 21.
Nce4 {[%clk 0:01:12.8]} 21... Rh6 {[%clk 0:02:07.2]} 22. Bxd4 {[%clk 0:01:02.4]}
22... cxd4 {[%clk 0:02:06.7]} 23. Rae1 {[%clk 0:01:02.2]} 23... d5 {[%clk
0:02:00.8]} 24. Ng3 {[%clk 0:01:00.3]} 24... dxc4 {[%clk 0:01:59.7]} 25. Qxc4
{[%clk 0:00:58.7]} 25... Bb5 {[%clk 0:01:56]} 26. Qb4 {[%clk 0:00:51.9]} 26...
Qd6 {[%clk 0:01:46.6]} 27. Qxd6 {[%clk 0:00:46.9]} 27... exd6 {[%clk 0:01:47.5]}
28. Rf2 {[%clk 0:00:45]} 28... Rc8 {[%clk 0:01:47.6]} 29. f5 {[%clk 0:00:33.8]}
29... Rc3 {[%clk 0:01:30.9]} 30. Kh2 {[%clk 0:00:31.5]} 30... e5 {[%clk
0:01:00.4]} 31. f6 {[%clk 0:00:28.1]} 31... Bd7 {[%clk 0:01:00.3]} 32. Nf5
{[%clk 0:00:23.6]} 32... Rxf6 {[%clk 0:00:51.1]} 33. Ne7+ {[%clk 0:00:22.2]}
33... Kg7 {[%clk 0:00:51.4]} 34. Rxf6 {[%clk 0:00:22.5]} 34... Kxf6 {[%clk
0:00:52.3]} 35. Nd5+ {[%clk 0:00:22.9]} 35... Kxg5 {[%clk 0:00:51.8]} 36. Nxc3
{[%clk 0:00:23.8]} 36... dxc3 {[%clk 0:00:52.1]} 37. Rc1 {[%clk 0:00:19.9]}
37... Kxg4 {[%clk 0:00:40.4]} 38. Rxc3 {[%clk 0:00:20.8]} 38... Kxh5 {[%clk
0:00:37]} 0-1

[Event "Late-Titled-Tuesday-Blitz-April-16-2024"]
[Site "Chess.com"]
[Date "2024.04.16"]
[Round "4"]
[White "Hirna2005"]
[Black "Savagelittlemole"]
[Result "1-0"]
[WhiteElo "2347"]
[BlackElo "2491"]
[TimeControl "180+1"]
[EndTime "14:36:58 PDT"]
[Termination "Hirna2005 won on time"]

1. e4 {[%clk 0:03:00.9]} 1... c5 {[%clk 0:02:59.1]} 2. c3 {[%clk 0:03:00.7]}
2... g6 {[%clk 0:02:59]} 3. d4 {[%clk 0:03:00.3]} 3... cxd4 {[%clk 0:02:59.9]}
4. cxd4 {[%clk 0:03:00.6]} 4... Bg7 {[%clk 0:03:00.3]} 5. Nc3 {[%clk 0:03:00.4]}
5... d6 {[%clk 0:02:59.8]} 6. Nf3 {[%clk 0:02:59.6]} 6... Nf6 {[%clk 0:03:00.4]}
7. Bd3 {[%clk 0:02:59.1]} 7... O-O {[%clk 0:03:00.7]} 8. O-O {[%clk 0:02:58.3]}
8... Nc6 {[%clk 0:03:01.1]} 9. Be3 {[%clk 0:02:52]} 9... Bg4 {[%clk 0:03:01.1]}
10. h3 {[%clk 0:02:49.4]} 10... Bxf3 {[%clk 0:03:01.4]} 11. Qxf3 {[%clk
0:02:49.4]} 11... Nd7 {[%clk 0:02:55.6]} 12. Rfd1 {[%clk 0:02:38.3]} 12... Bxd4
{[%clk 0:02:43.7]} 13. Bxd4 {[%clk 0:02:28.2]} 13... Nxd4 {[%clk 0:02:44.6]} 14.
Qg3 {[%clk 0:02:25.1]} 14... Ne5 {[%clk 0:02:35.1]} 15. Bf1 {[%clk 0:02:21]}
15... Nec6 {[%clk 0:02:21.9]} 16. Kh2 {[%clk 0:02:13.4]} 16... Qb6 {[%clk
0:02:19.8]} 17. Nd5 {[%clk 0:02:09.1]} 17... Qxb2 {[%clk 0:02:12.5]} 18. Rab1
{[%clk 0:02:08.9]} 18... Qxa2 {[%clk 0:02:08.6]} 19. Rxb7 {[%clk 0:02:07.9]}
19... e6 {[%clk 0:01:59.8]} 20. Nf6+ {[%clk 0:02:00.1]} 20... Kg7 {[%clk
0:01:57.8]} 21. Nh5+ {[%clk 0:01:54.3]} 21... Kh8 {[%clk 0:01:57.4]} 22. Nf6
{[%clk 0:01:45.5]} 22... Qa5 {[%clk 0:01:29.4]} 23. Qxd6 {[%clk 0:01:38.7]}
23... Rad8 {[%clk 0:01:19.8]} 24. Nd7 {[%clk 0:01:22.5]} 24... Ne5 {[%clk
0:00:24.4]} 25. Qxd4 {[%clk 0:01:16.9]} 25... Kg8 {[%clk 0:00:13.1]} 26. f4
{[%clk 0:01:00.4]} 26... Nxd7 {[%clk 0:00:11.8]} 27. Rxd7 {[%clk 0:01:00.1]}
27... Rxd7 {[%clk 0:00:12]} 28. Qxd7 {[%clk 0:01:00.3]} 28... Qa2 {[%clk
0:00:07.4]} 29. Qd4 {[%clk 0:00:56.9]} 29... a5 {[%clk 0:00:06.6]} 30. Bc4
{[%clk 0:00:55.8]} 30... Qc2 {[%clk 0:00:04.3]} 31. Rd2 {[%clk 0:00:49.8]} 31...
Qc1 {[%clk 0:00:03.7]} 32. f5 {[%clk 0:00:47.1]} 32... exf5 {[%clk 0:00:04]} 33.
exf5 {[%clk 0:00:47]} 1-0

[Event "Late-Titled-Tuesday-Blitz-April-16-2024"]
[Site "Chess.com"]
[Date "2024.04.16"]
[Round "4"]
[White "Hasangatin_Ramil"]
[Black "emeli_chess"]
[Result "1-0"]
[WhiteElo "2635"]
[BlackElo "2458"]
[TimeControl "180+1"]
[EndTime "14:36:59 PDT"]
[Termination "Hasangatin_Ramil won by resignation"]

1. e4 {[%clk 0:03:00.9]} 1... e5 {[%clk 0:02:58.6]} 2. Nf3 {[%clk 0:03:01.1]}
2... Nc6 {[%clk 0:02:59]} 3. d4 {[%clk 0:03:01.7]} 3... exd4 {[%clk 0:02:58.6]}
4. Nxd4 {[%clk 0:03:02.6]} 4... Bc5 {[%clk 0:02:57.3]} 5. Be3 {[%clk 0:03:02.2]}
5... Qf6 {[%clk 0:02:55.7]} 6. c3 {[%clk 0:03:02]} 6... Nge7 {[%clk 0:02:54.1]}
7. Bc4 {[%clk 0:03:02]} 7... O-O {[%clk 0:02:51.5]} 8. Nxc6 {[%clk 0:03:01.1]}
8... Qxc6 {[%clk 0:02:45.6]} 9. Bxc5 {[%clk 0:03:01.2]} 9... Qxc5 {[%clk
0:02:44.2]} 10. Qd4 {[%clk 0:03:01.5]} 10... Qg5 {[%clk 0:02:26]} 11. O-O {[%clk
0:02:59.8]} 11... d6 {[%clk 0:02:05.3]} 12. f4 {[%clk 0:02:58.7]} 12... Qh6
{[%clk 0:01:56.2]} 13. Nd2 {[%clk 0:02:55.6]} 13... Be6 {[%clk 0:01:47.8]} 14.
Bd3 {[%clk 0:02:55.8]} 14... f5 {[%clk 0:01:42.3]} 15. Rae1 {[%clk 0:02:53.3]}
15... Nc6 {[%clk 0:01:36.6]} 16. Qf2 {[%clk 0:02:51.2]} 16... fxe4 {[%clk
0:01:27.6]} 17. Nxe4 {[%clk 0:02:50.2]} 17... Bf5 {[%clk 0:01:21.7]} 18. Bc4+
{[%clk 0:02:40]} 18... Kh8 {[%clk 0:01:21.3]} 19. Ng3 {[%clk 0:02:39.9]} 19...
a6 {[%clk 0:01:10.4]} 20. Bd5 {[%clk 0:02:38.6]} 20... Bd3 {[%clk 0:01:03.8]}
21. Ne2 {[%clk 0:02:29.3]} 21... Rae8 {[%clk 0:00:50.4]} 22. Qf3 {[%clk
0:02:29.2]} 22... Bxe2 {[%clk 0:00:47.1]} 23. Rxe2 {[%clk 0:02:30.1]} 23... Rxe2
{[%clk 0:00:46.5]} 24. Qxe2 {[%clk 0:02:31]} 24... Qf6 {[%clk 0:00:25.8]} 25.
Bxc6 {[%clk 0:02:26.1]} 25... bxc6 {[%clk 0:00:26.1]} 26. Qxa6 {[%clk
0:02:26.1]} 26... d5 {[%clk 0:00:23.7]} 27. Qe2 {[%clk 0:02:24.2]} 27... h6
{[%clk 0:00:23.1]} 28. Qe5 {[%clk 0:02:21.9]} 28... Qxe5 {[%clk 0:00:22.1]} 29.
fxe5 {[%clk 0:02:21.8]} 29... Re8 {[%clk 0:00:22.6]} 30. Re1 {[%clk 0:02:21.3]}
30... Kg8 {[%clk 0:00:21.3]} 31. e6 {[%clk 0:02:19.8]} 31... Kf8 {[%clk
0:00:16.9]} 32. Rf1+ {[%clk 0:01:49]} 32... Kg8 {[%clk 0:00:16.5]} 33. Re1
{[%clk 0:01:40.9]} 33... Kf8 {[%clk 0:00:16.4]} 34. a4 {[%clk 0:01:38.7]} 34...
Ke7 {[%clk 0:00:15.6]} 35. b4 {[%clk 0:01:38.1]} 35... Kd6 {[%clk 0:00:14.6]}
36. Kf2 {[%clk 0:01:33.3]} 36... c5 {[%clk 0:00:14.6]} 37. b5 {[%clk 0:01:29.5]}
37... c4 {[%clk 0:00:12.3]} 38. e7 {[%clk 0:01:25.5]} 38... c5 {[%clk
0:00:11.5]} 39. bxc6 {[%clk 0:01:11.9]} 39... Kxc6 {[%clk 0:00:11.1]} 40. Re3
{[%clk 0:01:10.4]} 40... Kc5 {[%clk 0:00:10.4]} 41. Ke2 {[%clk 0:01:09.8]} 41...
d4 {[%clk 0:00:10.7]} 42. Re5+ {[%clk 0:01:07.8]} 42... Kd6 {[%clk 0:00:09.1]}
43. cxd4 {[%clk 0:01:08.7]} 43... Rxe7 {[%clk 0:00:07.2]} 44. Rxe7 {[%clk
0:01:07.8]} 44... Kxe7 {[%clk 0:00:07.6]} 45. Kd2 {[%clk 0:01:08.1]} 45... Kd6
{[%clk 0:00:07.3]} 46. Kc3 {[%clk 0:01:09]} 1-0

[Event "Late-Titled-Tuesday-Blitz-April-16-2024"]
[Site "Chess.com"]
[Date "2024.04.16"]
[Round "4"]
[White "Nechitaylo_Nikita"]
[Black "wild3000"]
[Result "0-1"]
[WhiteElo "2291"]
[BlackElo "2488"]
[TimeControl "180+1"]
[EndTime "14:37:00 PDT"]
[Termination "wild3000 won by checkmate"]

1. d4 {[%clk 0:03:00.9]} 1... d5 {[%clk 0:02:42.2]} 2. c4 {[%clk 0:03:00.8]}
2... dxc4 {[%clk 0:02:41.2]} 3. e3 {[%clk 0:03:00.4]} 3... e6 {[%clk 0:02:41.6]}
4. Bxc4 {[%clk 0:03:00.2]} 4... Nf6 {[%clk 0:02:42.5]} 5. Nf3 {[%clk 0:02:51.8]}
5... Be7 {[%clk 0:02:42.3]} 6. O-O {[%clk 0:02:50.3]} 6... O-O {[%clk
0:02:42.9]} 7. Nc3 {[%clk 0:02:45.3]} 7... a6 {[%clk 0:02:43]} 8. Bb3 {[%clk
0:02:38.5]} 8... b5 {[%clk 0:02:37.7]} 9. a4 {[%clk 0:02:38.4]} 9... b4 {[%clk
0:02:37.5]} 10. Ne2 {[%clk 0:02:33.8]} 10... a5 {[%clk 0:02:34.1]} 11. Ng3
{[%clk 0:02:20.1]} 11... Nbd7 {[%clk 0:02:30.1]} 12. e4 {[%clk 0:02:01.7]} 12...
Ba6 {[%clk 0:02:26.8]} 13. Re1 {[%clk 0:02:00.3]} 13... c5 {[%clk 0:02:22.8]}
14. e5 {[%clk 0:01:17.4]} 14... Nd5 {[%clk 0:02:06.5]} 15. Bxd5 {[%clk
0:00:39.7]} 15... exd5 {[%clk 0:02:07.4]} 16. e6 {[%clk 0:00:37.6]} 16... Nf6
{[%clk 0:02:04.2]} 17. Nf5 {[%clk 0:00:27.3]} 17... Ne4 {[%clk 0:01:53.5]} 18.
exf7+ {[%clk 0:00:06.2]} 18... Rxf7 {[%clk 0:01:54.4]} 19. Nxe7+ {[%clk
0:00:03.4]} 19... Qxe7 {[%clk 0:01:55.3]} 20. dxc5 {[%clk 0:00:04.2]} 20... Qxc5
{[%clk 0:01:54.4]} 21. Be3 {[%clk 0:00:05]} 21... Qd6 {[%clk 0:01:51.9]} 22. Qd4
{[%clk 0:00:02.8]} 22... Raf8 {[%clk 0:01:47.6]} 23. Rad1 {[%clk 0:00:02.5]}
23... Bb7 {[%clk 0:01:37.4]} 24. Ne5 {[%clk 0:00:01.8]} 24... Rf5 {[%clk
0:01:30.3]} 25. f3 {[%clk 0:00:01.7]} 25... Qxe5 {[%clk 0:01:28.3]} 26. Qxe5
{[%clk 0:00:01.3]} 26... Rxe5 {[%clk 0:01:28]} 27. fxe4 {[%clk 0:00:01.6]} 27...
Rxe4 {[%clk 0:01:28.9]} 28. Bb6 {[%clk 0:00:01.5]} 28... Rfe8 {[%clk 0:01:12.9]}
29. Rxe4 {[%clk 0:00:01.6]} 29... Rxe4 {[%clk 0:01:13.8]} 30. Bxa5 {[%clk
0:00:02.5]} 30... b3 {[%clk 0:01:14.5]} 31. Bb6 {[%clk 0:00:02.3]} 31... Rxa4
{[%clk 0:01:14.2]} 32. Rf1 {[%clk 0:00:02.2]} 32... h6 {[%clk 0:01:10.4]} 33.
Bc5 {[%clk 0:00:02.6]} 33... Rc4 {[%clk 0:01:10.1]} 34. Rf8+ {[%clk 0:00:02.2]}
34... Kh7 {[%clk 0:01:10]} 35. Bd6 {[%clk 0:00:01.7]} 35... Rc1+ {[%clk
0:01:07.7]} 36. Rf1 {[%clk 0:00:02.3]} 36... Rc2 {[%clk 0:01:06.9]} 37. Be5
{[%clk 0:00:02.9]} 37... Re2 {[%clk 0:01:06.1]} 38. Bc3 {[%clk 0:00:01.6]} 38...
d4 {[%clk 0:01:06.2]} 39. Bxd4 {[%clk 0:00:01.4]} 39... Rxg2+ {[%clk 0:01:06.1]}
40. Kh1 {[%clk 0:00:01.6]} 40... Rg4+ {[%clk 0:01:03.9]} 41. Rf3 {[%clk
0:00:01.3]} 41... Bxf3# {[%clk 0:01:02.7]} 0-1

[Event "Late-Titled-Tuesday-Blitz-April-16-2024"]
[Site "Chess.com"]
[Date "2024.04.16"]
[Round "4"]
[White "egnfanclub"]
[Black "JaackCamel"]
[Result "1-0"]
[WhiteElo "2373"]
[BlackElo "2227"]
[TimeControl "180+1"]
[EndTime "14:37:01 PDT"]
[Termination "egnfanclub won on time"]

1. e4 {[%clk 0:03:00.9]} 1... e6 {[%clk 0:02:59.6]} 2. d4 {[%clk 0:03:00.4]}
2... d5 {[%clk 0:02:58.4]} 3. Nc3 {[%clk 0:03:00.3]} 3... Bb4 {[%clk 0:02:57.8]}
4. Ne2 {[%clk 0:02:59.6]} 4... dxe4 {[%clk 0:02:55.6]} 5. a3 {[%clk 0:02:59.8]}
5... Be7 {[%clk 0:02:55.2]} 6. Nxe4 {[%clk 0:02:59.9]} 6... Nf6 {[%clk
0:02:55.1]} 7. N2c3 {[%clk 0:02:58]} 7... Nbd7 {[%clk 0:02:53.3]} 8. Bd3 {[%clk
0:02:57.6]} 8... O-O {[%clk 0:02:51.1]} 9. Qe2 {[%clk 0:02:50.8]} 9... c5 {[%clk
0:02:45.2]} 10. Be3 {[%clk 0:02:39]} 10... cxd4 {[%clk 0:02:32.7]} 11. Bxd4
{[%clk 0:02:38.9]} 11... e5 {[%clk 0:02:28.4]} 12. Be3 {[%clk 0:02:34.7]} 12...
Qa5 {[%clk 0:02:18.5]} 13. O-O-O {[%clk 0:02:30.5]} 13... Nxe4 {[%clk
0:01:49.4]} 14. Bxe4 {[%clk 0:02:25.6]} 14... Nf6 {[%clk 0:01:40.4]} 15. Bf3
{[%clk 0:02:23]} 15... Bxa3 {[%clk 0:01:36.5]} 16. Nd5 {[%clk 0:02:06.1]} 16...
Be6 {[%clk 0:00:30.4]} 17. Nxf6+ {[%clk 0:01:51.7]} 17... gxf6 {[%clk 0:00:30]}
18. bxa3 {[%clk 0:01:50.5]} 18... Rfd8 {[%clk 0:00:28.5]} 19. Kb2 {[%clk
0:01:33.1]} 19... Rdc8 {[%clk 0:00:20.5]} 20. Qd2 {[%clk 0:01:08.1]} 20... Qa6
{[%clk 0:00:13]} 21. Bd5 {[%clk 0:00:52.3]} 21... Bxd5 {[%clk 0:00:07.6]} 22.
Qxd5 {[%clk 0:00:51.7]} 22... Rc4 {[%clk 0:00:07.7]} 23. Rd3 {[%clk 0:00:48.7]}
23... Rac8 {[%clk 0:00:07.6]} 24. Rc1 {[%clk 0:00:47.7]} 24... Qa4 {[%clk
0:00:07.4]} 25. Rb3 {[%clk 0:00:42.7]} 25... b6 {[%clk 0:00:05.3]} 26. Qb5
{[%clk 0:00:39.1]} 26... Qxb5 {[%clk 0:00:02.4]} 27. Rxb5 {[%clk 0:00:39.2]}
27... Kg7 {[%clk 0:00:01.8]} 28. Rb3 {[%clk 0:00:37.2]} 28... f5 {[%clk
0:00:01.9]} 29. g3 {[%clk 0:00:37]} 29... h5 {[%clk 0:00:01.5]} 30. c3 {[%clk
0:00:31.4]} 1-0

[Event "Late-Titled-Tuesday-Blitz-April-16-2024"]
[Site "Chess.com"]
[Date "2024.04.16"]
[Round "4"]
[White "CarlosjPineror"]
[Black "AktilekAskarovich"]
[Result "1-0"]
[WhiteElo "2700"]
[BlackElo "2491"]
[TimeControl "180+1"]
[EndTime "14:37:04 PDT"]
[Termination "CarlosjPineror won by resignation"]

1. e4 {[%clk 0:03:00.9]} 1... c6 {[%clk 0:02:59.2]} 2. Nf3 {[%clk 0:03:00.4]}
2... d5 {[%clk 0:03:00.1]} 3. exd5 {[%clk 0:03:01.1]} 3... cxd5 {[%clk
0:03:00.4]} 4. Ne5 {[%clk 0:03:01.7]} 4... Nd7 {[%clk 0:02:58.1]} 5. Bb5 {[%clk
0:02:54.9]} 5... Nf6 {[%clk 0:02:58.5]} 6. O-O {[%clk 0:02:53.3]} 6... e6 {[%clk
0:02:57.4]} 7. d4 {[%clk 0:02:53.6]} 7... Be7 {[%clk 0:02:56.9]} 8. f4 {[%clk
0:02:53.6]} 8... O-O {[%clk 0:02:56.6]} 9. Bd3 {[%clk 0:02:53.1]} 9... Ne4
{[%clk 0:02:52.8]} 10. Nd2 {[%clk 0:02:52.4]} 10... f5 {[%clk 0:02:50.2]} 11. c3
{[%clk 0:02:50]} 11... Ndf6 {[%clk 0:02:43.2]} 12. Ndf3 {[%clk 0:02:40.6]} 12...
Bd7 {[%clk 0:02:43.2]} 13. Be3 {[%clk 0:02:37.9]} 13... Rc8 {[%clk 0:02:41.4]}
14. Nxd7 {[%clk 0:02:34.6]} 14... Nxd7 {[%clk 0:02:40.4]} 15. Qe2 {[%clk
0:02:31.3]} 15... a6 {[%clk 0:02:39.2]} 16. Rac1 {[%clk 0:02:26.4]} 16... b5
{[%clk 0:02:38.8]} 17. a4 {[%clk 0:02:22.3]} 17... bxa4 {[%clk 0:02:35]} 18.
Bxa6 {[%clk 0:02:17.3]} 18... Rc7 {[%clk 0:02:28.2]} 19. c4 {[%clk 0:02:08.6]}
19... Qb8 {[%clk 0:01:54.3]} 20. c5 {[%clk 0:02:05.2]} 20... Qb4 {[%clk
0:01:48.7]} 21. Rc2 {[%clk 0:01:59.2]} 21... Rb8 {[%clk 0:01:47.3]} 22. Bd2
{[%clk 0:01:54.5]} 22... Qb3 {[%clk 0:01:42.7]} 23. Bd3 {[%clk 0:01:47.4]} 23...
Bf6 {[%clk 0:01:39.8]} 24. Ra1 {[%clk 0:01:43.7]} 24... Ra8 {[%clk 0:01:15.3]}
25. Be1 {[%clk 0:01:39.8]} 25... Kf7 {[%clk 0:00:59.8]} 26. Bb5 {[%clk
0:01:35.6]} 26... a3 {[%clk 0:00:48.9]} 27. bxa3 {[%clk 0:01:29.5]} 27... Rxa3
{[%clk 0:00:48.5]} 28. Rxa3 {[%clk 0:01:30.4]} 28... Qxa3 {[%clk 0:00:48.5]} 29.
g3 {[%clk 0:01:31]} 29... Qa1 {[%clk 0:00:44.8]} 30. Ra2 {[%clk 0:01:26.7]}
30... Qb1 {[%clk 0:00:41.9]} 31. Kg2 {[%clk 0:01:14.5]} 31... Rb7 {[%clk
0:00:28.2]} 32. Rb2 {[%clk 0:01:10.5]} 32... Qc1 {[%clk 0:00:25.3]} 33. c6
{[%clk 0:01:07.3]} 33... Rxb5 {[%clk 0:00:25.6]} 34. Qxb5 {[%clk 0:01:06.4]}
34... Nf8 {[%clk 0:00:24.6]} 35. Qb7+ {[%clk 0:01:03.3]} 35... Kg6 {[%clk
0:00:24.3]} 36. c7 {[%clk 0:01:04.2]} 36... Nd6 {[%clk 0:00:22.9]} 37. Qb6
{[%clk 0:00:54.5]} 37... Nd7 {[%clk 0:00:22.6]} 38. Qxd6 {[%clk 0:00:45.7]}
38... Qxb2+ {[%clk 0:00:22.6]} 39. Bf2 {[%clk 0:00:46.4]} 39... Nb6 {[%clk
0:00:20.4]} 40. Qxb6 {[%clk 0:00:46.9]} 40... Qxb6 {[%clk 0:00:21.3]} 41. c8=Q
{[%clk 0:00:47.8]} 41... Qb5 {[%clk 0:00:19.5]} 42. Qxe6 {[%clk 0:00:47.2]} 1-0

[Event "Late-Titled-Tuesday-Blitz-April-16-2024"]
[Site "Chess.com"]
[Date "2024.04.16"]
[Round "4"]
[White "fviana"]
[Black "Karttunen"]
[Result "0-1"]
[WhiteElo "2496"]
[BlackElo "2700"]
[TimeControl "180+1"]
[EndTime "14:37:05 PDT"]
[Termination "Karttunen won by resignation"]

1. e4 {[%clk 0:03:00.9]} 1... e5 {[%clk 0:02:55.5]} 2. Nf3 {[%clk 0:03:00.9]}
2... Nc6 {[%clk 0:02:55.3]} 3. Bb5 {[%clk 0:02:57.3]} 3... Nf6 {[%clk
0:02:53.9]} 4. d3 {[%clk 0:02:56.8]} 4... d6 {[%clk 0:02:47.7]} 5. O-O {[%clk
0:02:54.8]} 5... h6 {[%clk 0:02:47]} 6. c3 {[%clk 0:02:53.9]} 6... g6 {[%clk
0:02:45.4]} 7. Re1 {[%clk 0:02:53.2]} 7... Bg7 {[%clk 0:02:45.4]} 8. Nbd2 {[%clk
0:02:52.6]} 8... O-O {[%clk 0:02:45]} 9. Nf1 {[%clk 0:02:51.6]} 9... a6 {[%clk
0:02:42.4]} 10. Ba4 {[%clk 0:02:50.8]} 10... b5 {[%clk 0:02:42.6]} 11. Bc2
{[%clk 0:02:50.8]} 11... Bb7 {[%clk 0:02:33.9]} 12. Ng3 {[%clk 0:02:50.4]} 12...
Nb8 {[%clk 0:02:32.2]} 13. d4 {[%clk 0:02:49.5]} 13... Nbd7 {[%clk 0:02:31.4]}
14. a4 {[%clk 0:02:46.2]} 14... c6 {[%clk 0:02:30.7]} 15. h3 {[%clk 0:02:44.5]}
15... Re8 {[%clk 0:02:28.7]} 16. Be3 {[%clk 0:02:44.6]} 16... Qc7 {[%clk
0:02:24.4]} 17. Qd2 {[%clk 0:02:42.9]} 17... Kh7 {[%clk 0:02:24.3]} 18. b4
{[%clk 0:02:42.8]} 18... Rad8 {[%clk 0:02:22.6]} 19. axb5 {[%clk 0:02:41.7]}
19... cxb5 {[%clk 0:02:21.4]} 20. d5 {[%clk 0:02:40.5]} 20... Rc8 {[%clk
0:02:16]} 21. Ne2 {[%clk 0:02:35]} 21... Nb6 {[%clk 0:02:13.7]} 22. Bxb6 {[%clk
0:02:24.6]} 22... Qxb6 {[%clk 0:02:13.7]} 23. Bd3 {[%clk 0:02:25.3]} 23... Nxd5
{[%clk 0:02:01.7]} 24. exd5 {[%clk 0:02:24]} 24... e4 {[%clk 0:02:01.8]} 25.
Bxe4 {[%clk 0:02:08.8]} 25... Rxe4 {[%clk 0:02:01.4]} 26. Ned4 {[%clk
0:02:09.4]} 26... Bxd5 {[%clk 0:01:57.1]} 27. Rxe4 {[%clk 0:01:58.1]} 27... Bxe4
{[%clk 0:01:57]} 28. Ra3 {[%clk 0:01:46.1]} 28... Bb7 {[%clk 0:01:37.4]} 29. Qf4
{[%clk 0:01:40.8]} 29... Qc7 {[%clk 0:01:32.5]} 30. h4 {[%clk 0:01:36.1]} 30...
Re8 {[%clk 0:01:29.7]} 31. Qd2 {[%clk 0:01:25.2]} 31... Qd7 {[%clk 0:01:13.4]}
32. Qf4 {[%clk 0:01:11.3]} 32... Re4 {[%clk 0:01:10.2]} 33. Qd2 {[%clk
0:01:05.9]} 33... Qg4 {[%clk 0:01:04.6]} 34. g3 {[%clk 0:00:59.5]} 34... Be5
{[%clk 0:00:47.1]} 35. Ra1 {[%clk 0:00:30.4]} 35... Rf4 {[%clk 0:00:38]} 36.
Nxe5 {[%clk 0:00:22.1]} 36... dxe5 {[%clk 0:00:38.2]} 0-1